Cogmind - Beta 12 X2 @@@ ROGUE MODE // 2022.09.07 @ 21:20:19 Player: ArabianSandBoa Result: Destroyed by DAS Turret with DAS Cannon Performance ------------- Evolutions (1) 500 Regions Visited (5) 1000 Robots Destroyed (103) 515 Value Destroyed (1883) 1883 Prototype IDs (4) 80 Alien Tech Used (0) 0 Bonus (-39) -39 TOTAL SCORE: 3939 Bonus ------- High Alert Combat Kills 68 Follower Combat Kills 53 Friendly Fire -160 Cogmind --------- Core Integrity 0/400 Matter 282/300 Energy 223/240 System Corruption 13% Temperature Cool (0) Movement Rolling (125) Ox3 Location -9/Exiles Parts ------- > --- POWER (1) -------- Nuclear Core > --- PROPULSION (2) --- Wheel > --- UTILITY (4) ------ Cooling System Medium Storage Unit Particle Charger Hardened Light Armor Plating > --- WEAPON (2) ------- Advanced Beam Cannon Rocket Launcher > --- INVENTORY (10) --- Nuclear Core Large Battery (200) High-capacity Matter Pod (169) Light Armor Plating Light Armor Plating Light EM Pulse Cannon Light EM Pulse Cannon Advanced Beam Cannon EMP Blaster Peak State ------------ > --- POWER ------------ Nuclear Core > --- PROPULSION ------- Improved Aluminum Leg Improved Aluminum Leg > --- UTILITY ---------- Cooling System Cargo Storage Unit Visual Processing Unit > --- WEAPON ----------- Advanced Beam Cannon Advanced Beam Cannon > --- INVENTORY -------- Nuclear Core Wheel Cooling System Cargo Storage Unit Large Battery Large Battery High-capacity Matter Pod Particle Charger Particle Charger Particle Charger Light Armor Plating Hardlight Generator Trap Extractor Trap Extractor Trap Extractor Trap Extractor Trap Extractor Light EM Pulse Cannon Advanced Beam Cannon Advanced Beam Cannon EMP Blaster Rocket Launcher Rocket Launcher [Rating: 23] Favorites ----------- Power Nuclear Core Engine Ion Engine Power Core Nuclear Core Propulsion Wheel Treads Light Treads Leg Aluminum Leg Wheel Wheel Flight Unit Flight Unit Utility Cargo Storage Unit Device Cooling System Storage Cargo Storage Unit Processor Signal Interpreter Protection Hardened Light Armor Plating Weapon Advanced Beam Cannon Energy Gun Particle Gun Energy Cannon Advanced Beam Cannon Ballistic Gun Light Assault Rifle Ballistic Cannon Light Cannon Launcher Grenade Launcher Build | -11 -10 -10 -9 -9 -9 ------- Run | Scr Mat Min Mat Min Exi Slots Evolved 2 | . . . 2 . . Power . | . . . . . . Propulsion . | . . . . . . Utility 2 | . . . 2 . . Weapon . | . . . . . . Parts Attached 93 | 3 36 5 31 3 15 Power 6 | . 3 . 3 . . Engine 3 | . 3 . . . . Core 3 | . . . 3 . . Reactor . | . . . . . . Propulsion 27 | 2 12 4 8 1 . Treads 2 | 2 . . . . . Leg 10 | . 6 2 2 . . Wheel 12 | . 3 2 6 1 . Hover . | . . . . . . Flight 3 | . 3 . . . . Utility 38 | . 12 1 11 2 12 Device 20 | . 7 . 5 1 7 Storage 6 | . 3 . 1 . 2 Processor 6 | . 2 1 3 . . Hackware . | . . . . . . Protection 6 | . . . 2 1 3 Artifact . | . . . . . . Weapon 22 | 1 9 . 9 . 3 Energy Gun 5 | 1 2 . 2 . . Energy Cannon 8 | . 1 . 5 . 2 Ballistic Gun 1 | . 1 . . . . Ballistic Cannon 4 | . 3 . 1 . . Launcher 4 | . 2 . 1 . 1 Special Weapon . | . . . . . . Impact Weapon . | . . . . . . Slashing Weapon . | . . . . . . Piercing Weapon . | . . . . . . Special Melee Weapon . | . . . . . . Unidentified Prototypes 2 | . . . 2 . . Corrupted Parts 1 | . . . 1 . . System Corruption 10 | . . . 10 . . Parts Lost 15 | . 8 . 6 . 1 Power 1 | . 1 . . . . Propulsion 8 | . 3 . 4 . 1 Utility . | . . . . . . Weapon 6 | . 4 . 2 . . Highest Loss Streak 5 | . 5 . 3 . 1 To Critical Strikes . | . . . . . . Average Slot Usage (%) 89 | . 92 98 86 88 81 Engine 5 | . 13 14 1 . . Core 6 | . . . 9 11 11 Leg 4 | . 18 . . . . Wheel 19 | . 6 27 21 22 21 Device 10 | . 11 5 10 11 21 Storage 11 | . 13 14 11 11 9 Processor 5 | . 1 6 9 . . Protection 2 | . . . 2 10 6 Energy Gun 1 | . 4 . 1 . . Energy Cannon 13 | . 3 14 17 22 11 Ballistic Gun 3 | . 5 14 . . . Ballistic Cannon 2 | . 8 . 1 . . Naked Turns . | . . . . . . Heaviest Build 162 | 2 91 91 157 162 162 Greatest Support 32 | 3 32 32 26 20 20 Greatest Overweight (x) 15 | . 5 4 15 8 8 Average Overweight (x) 4 | . . 3 6 7 3 Largest Inventory Capacity 30 | 5 25 25 30 30 30 Average Capacity 24 | 5 12 25 30 30 20 Most Carried 30 | 5 20 25 30 29 30 Average Carried 22 | 3 10 23 28 28 18 Final Capacity 30 | 5 25 25 30 30 10 Final Carried 29 | 5 20 24 29 28 9 Class Distribution -------------------- 80% | Trapper-Mutant 16% | Mutant Dominant Class ---------------- Mutant | -10/Materials Trapper-Mutant | -10/Mines Trapper-Mutant | -9/Materials Trapper-Mutant | -9/Mines Mutant | -9/Exiles Resources | -11 -10 -10 -9 -9 -9 ----------- Run | Scr Mat Min Mat Min Exi Matter Collected 2064 | 230 642 75 622 92 403 Remotely . | . . . . . . Salvage Created 3034 | . 646 178 1989 188 33 Parts 202 | . 47 13 120 11 11 Haulers Intercepted 8 | . 2 . 6 . . Recyclers Shooed 5 | . 3 . 2 . . Parts Field Recycled . | . . . . . . Retrieved Matter . | . . . . . . Parts Self-Destructed . | . . . . . . Prevented . | . . . . . . Kills | -11 -10 -10 -9 -9 -9 ------- Run | Scr Mat Min Mat Min Exi Combat Hostiles Destroyed 57 | . 12 6 33 2 4 Guns 15 | . 8 5 2 . . Cannons 32 | . 4 1 25 2 . AOE 7 | . . . 3 . 4 Classes Destroyed 13 | . 9 . 3 . 1 Worker 8 | . 3 . 5 . . Builder 9 | . 2 . 7 . . Tunneler 3 | . 1 . 2 . . Hauler 8 | . 2 . 6 . . Recycler 7 | . 2 1 3 1 . Mechanic 2 | . . . 2 . . Operator 3 | . 2 . 1 . . Watcher 8 | . 3 . 5 . . Swarmer 21 | . 6 6 9 . . Grunt 22 | . 6 . 14 2 . Brawler 1 | . . . 1 . . Sentry 9 | . . . 9 . . Assembled 4 | . . . . . 4 Thug 1 | . . . . 1 . Best Kill Streak 8 | . 4 3 8 2 5 Combat Bots Only 5 | . 3 3 5 2 4 Max Kills in Single Turn 5 | . 2 1 3 1 5 Gunslinging . | . . . . . . Exploded 4 | . . . 3 . 4 Melee . | . . . . . . Uniques/NPCs Destroyed 1 | . . . . . 1 EX-HEX (-9/Exiles) Combat | -11 -10 -10 -9 -9 -9 -------- Run | Scr Mat Min Mat Min Exi Damage Taken 2706 | . 888 241 1178 118 281 Core 687 | . 159 73 338 6 111 Absorbed by Shields . | . . . . . . Redirected to Shielding 4 | . . . 4 . . Core Remaining (%) 53 | 100 . 7 . . . Volleys Fired 251 | . 86 25 126 11 3 Largest 2 | . 2 2 2 2 2 Hottest 136 | . 100 80 136 136 136 Shots Fired 440 | . 120 50 242 23 5 Gun 119 | . 65 25 29 . . Cannon 307 | . 45 25 210 23 4 Launcher 14 | . 10 . 3 . 1 Special . | . . . . . . Kinetic 147 | . 66 25 56 . . Thermal 275 | . 43 25 180 23 4 Explosive 14 | . 10 . 3 . 1 Electromagnetic 4 | . 1 . 3 . . Robot Hit Streak 18 | . 17 3 18 4 3 Robot Miss Streak 7 | . 6 7 3 5 1 Penetration Max . | . . . . . . Secondary Targets . | . . . . . . Shots Hit Robots 255 | . 68 19 155 9 4 Core Hits 129 | . 40 8 67 5 9 Critical Kills 4 | . 1 . 3 . . Critical Parts Destroyed . | . . . . . . Critical Strikes 10 | . 2 . 8 . . Burn 1 | . 1 . . . . Meltdown 3 | . . . 3 . . Destroy 1 | . 1 . . . . Blast 5 | . . . 5 . . Melee Attacks . | . . . . . . Impact . | . . . . . . Slashing . | . . . . . . Piercing . | . . . . . . Sneak Attacks . | . . . . . . Combat Hostiles . | . . . . . . Follow-up Attacks . | . . . . . . Damage Inflicted 5648 | . 1397 220 3499 212 320 Guns 883 | . 475 97 311 . . Cannons 3739 | . 420 123 2938 212 46 Explosions 1026 | . 502 . 250 . 274 Melee . | . . . . . . Ramming . | . . . . . . Kinetic 1432 | . 471 97 864 . . Thermal 3272 | . 576 123 2315 212 46 Explosive 859 | . 335 . 250 . 274 Electromagnetic 85 | . 15 . 70 . . Impact . | . . . . . . Slashing . | . . . . . . Piercing . | . . . . . . Highest Corruption 13 | . . . 13 13 13 Average Corruption 6 | . . . 2 13 13 Corruption Purged . | . . . . . . Corruption Blocked . | . . . . . . Effects 110 | . . . 40 48 22 Message Errors 19 | . . . 6 8 5 Matter Fused 32 | . . . 14 10 8 Heat Flow Errors 14 | . . . 7 6 1 Energy Discharges 14 | . . . 3 9 2 Data Loss (minor) 14 | . . . 4 7 3 Data Loss (major) 5 | . . . 2 2 1 Misfires 8 | . . . 4 3 1 Alerts 1 | . . . . 1 . Weapon Failures 3 | . . . . 2 1 Overload Shots . | . . . . . . Overflow Damage 183 | . 110 . 72 1 . Projectiles 50 | . . . 49 1 . Explosions 133 | . 110 . 23 . . Melee . | . . . . . . Knockbacks 4 | . 4 . . . . Impact . | . . . . . . Kinetic 3 | . 3 . . . . Secondary 1 | . 1 . . . . Self-Inflicted Damage 346 | . 195 . 105 . 46 Shots 10 | . 5 . 4 . 1 Rammed . | . . . . . . Targets Rammed . | . . . . . . Kicked . | . . . . . . Crushed . | . . . . . . Highest Temperature 324 | . 312 320 324 254 95 Average Temperature 66 | . 70 103 52 71 37 Received Heat Transfer 585 | . 183 . 387 15 . Effects 3 | . 2 1 . . . Energy Bleed 1 | . . 1 . . . Interference 2 | . 2 . . . . Siege Activations . | . . . . . . Robots Corrupted . | . . . . . . Combat Hostiles . | . . . . . . Parts Fried 1 | . 1 . . . . Impact Corruptions . | . . . . . . Robots Melted 3 | . . . 3 . . Combat Hostiles 3 | . . . 3 . . Parts Melted 11 | . 1 . 10 . . Heat Transferred 6218 | . 1149 259 4366 370 74 Parts Sabotaged . | . . . . . . Parts Stolen . | . . . . . . Parts Stripped . | . . . . . . Power Chain Reactions 1 | . 1 . . . . Missiles Intercepted . | . . . . . . Alert | -11 -10 -10 -9 -9 -9 ------- Run | Scr Mat Min Mat Min Exi Peak Influence 652 | . 478 245 652 303 . Initial 238 | . . 109 . 238 . Average 270 | . 318 122 349 152 . Maximum Alert Level 2 | . 2 1 2 1 . Low Security (%) 40 | 100 11 83 30 63 . Level 1 39 | . 78 16 27 36 . Level 2 20 | . 10 . 42 . . Level 3 . | . . . . . . Level 4 . | . . . . . . Level 5 . | . . . . . . High Security . | . . . . . . Max Security . | . . . . . . Squads Dispatched 9 | . 2 . 7 . . Investigation 5 | . 2 . 3 . . Extermination . | . . . . . . Reinforcement 4 | . . . 4 . . Assault . | . . . . . . Garrison . | . . . . . . Intercept . | . . . . . . Searches Triggered . | . . . . . . Construction Impeded 2 | . . . 2 . . Haulers Reinforced . | . . . . . . Active Scanning Responses . | . . . . . . Cargo Convoy Interrupts . | . . . . . . Stealth | -11 -10 -10 -9 -9 -9 --------- Run | Scr Mat Min Mat Min Exi Distress Signals 7 | . . . 7 . . Communications Jammed . | . . . . . . Distress Signals . | . . . . . . Times Spotted 84 | . 17 11 45 4 7 Peak Tracking Total 9 | . 3 3 6 2 9 Tactical Retreats 5 | . 1 2 2 . . Traps | -11 -10 -10 -9 -9 -9 ------- Run | Scr Mat Min Mat Min Exi Traps Triggered 1 | . . . 1 . . Indirectly . | . . . . . . Trap Hack Attempts . | . . . . . . Triggered . | . . . . . . Disarmed . | . . . . . . Reprogrammed 19 | . 13 . 6 . . Reused 2 | . 1 . 1 . . Traps Extracted 13 | . 12 . . . 1 Installed 13 | . . . . . 13 Triggered 2 | . 1 . 1 . . Most Traps Carried 16 | . 12 16 16 12 12 Machines | -11 -10 -10 -9 -9 -9 ---------- Run | Scr Mat Min Mat Min Exi Machines Disabled 12 | . 5 . 5 1 1 Max in Single Turn 3 | . 3 . 2 1 1 Machines Sabotaged . | . . . . . . Overloaded Fab Kills . | . . . . . . Hacking | -11 -10 -10 -9 -9 -9 --------- Run | Scr Mat Min Mat Min Exi Machines Accessed 19 | . 6 1 11 1 . Terminals 17 | . 5 1 10 1 . Fabricators . | . . . . . . Repair Stations . | . . . . . . Recycling Units 2 | . 1 . 1 . . Scanalyzers . | . . . . . . Garrison Access . | . . . . . . Total Hacks 60 | . 19 3 35 3 . Successful 31 | . 12 1 15 3 . Failed 29 | . 7 2 20 . . Catastrophic 7 | . 2 1 4 . . Database Lockouts . | . . . . . . Manual 41 | . 9 3 27 2 . Terminals 56 | . 17 3 33 3 . Fabricators . | . . . . . . Repair Stations . | . . . . . . Recycling Units 4 | . 2 . 2 . . Scanalyzers . | . . . . . . Garrison Access . | . . . . . . Terminal Hacks 28 | . 10 1 14 3 . Record 3 | . 1 . . 2 . Robot Analysis 3 | . . . 3 . . Prototype ID Bank 1 | . . . 1 . . Branch Access Points 1 | . . . 1 . . Unreport Threat 3 | . . 1 1 1 . Locate Traps 3 | . 3 . . . . Reprogram Traps 8 | . 4 . 4 . . Hauler Manifests 2 | . 1 . 1 . . Zone Layout 4 | . 1 . 3 . . Fabricator Hacks . | . . . . . . Repair Station Hacks . | . . . . . . Recycling Unit Hacks 3 | . 2 . 1 . . Report Inventory 1 | . 1 . . . . Retrieve Components 2 | . 1 . 1 . . Scanalyzer . | . . . . . . Garrison Access Hacks . | . . . . . . Unauthorized Hacks . | . . . . . . Terminals . | . . . . . . Fabricators . | . . . . . . Repair Stations . | . . . . . . Recycling Units . | . . . . . . Scanalyzers . | . . . . . . Garrison Access . | . . . . . . Data Cores Recovered 1 | . 1 . . . . Used 1 | . 1 . . . . Hacking Detections 17 | . 5 1 10 1 . Full Trace Events 8 | . 3 . 5 . . Feedback Events . | . . . . . . Feedback Blocked . | . . . . . . Robot Schematics Acquired . | . . . . . . Robots Built . | . . . . . . Authchips . | . . . . . . Time . | . . . . . . Total Robot Build Rating . | . . . . . . Part Schematics Acquired . | . . . . . . Parts Built . | . . . . . . Authchips . | . . . . . . Time . | . . . . . . Total Part Build Rating . | . . . . . . Parts Repaired . | . . . . . . Time . | . . . . . . Parts Recycled . | . . . . . . Recycled Matter . | . . . . . . Retrieved Matter . | . . . . . . Retrieved Components 20 | . 10 . 10 . . Parts Scanalyzed . | . . . . . . Part Schematics Acquired . | . . . . . . Parts Damaged . | . . . . . . Bothacking | -11 -10 -10 -9 -9 -9 ------------ Run | Scr Mat Min Mat Min Exi Used RIF Installer . | . . . . . . Robots Hacked . | . . . . . . Non-combat . | . . . . . . Combat . | . . . . . . Robot Hacks Applied . | . . . . . . Relay Couplers Released . | . . . . . . Fabnet Peak Effective % . | . . . . . . Robots Rewired . | . . . . . . Allies Hacked . | . . . . . . Hacks Repelled . | . . . . . . Allies | -11 -10 -10 -9 -9 -9 -------- Run | Scr Mat Min Mat Min Exi Total Allies 4 | . . 3 . 1 . Largest Group 3 | . . 3 2 1 . Highest-Rated Group 40 | . . 40 24 31 . Highest-Rated Ally 31 | . . 16 16 31 . Total Orders 3 | . . 3 . . . STAY 2 | . . 2 . . . FOLLOW 1 | . . 1 . . . Ally Attacks 29 | . . 14 10 5 . Total Damage 220 | . . 94 84 42 . Kills 5 | . . 3 1 1 . Allies Corrupted . | . . . . . . Allies Melted . | . . . . . . Intel | -11 -10 -10 -9 -9 -9 ------- Run | Scr Mat Min Mat Min Exi Robot Analysis Total 3 | . . . 3 . . Derelict Logs Recovered 2 | . . 2 . . . Drone Launches . | . . . . . . Drone Recoveries . | . . . . . . Exploration | -11 -10 -10 -9 -9 -9 ------------- Run | Scr Mat Min Mat Min Exi Turns Passed 7754 | 31 1743 1235 3031 1096 618 Spaces Moved 4077 | 41 1064 724 1370 516 362 Core 91 | 41 50 . . . . Treads . | . . . . . . Legs 612 | . 612 . . . . Wheels 3290 | . 318 724 1370 516 362 Hover . | . . . . . . Flight 84 | . 84 . . . . Fastest Speed 37 | 50 37 130 165 185 80 Average Speed 155 | 50 130 135 178 199 134 Slowest Speed 305 | 50 300 140 305 200 200 Overloaded Moves . | . . . . . . Propulsion Burnouts . | . . . . . . Robots Hopped . | . . . . . . Cave-ins Triggered . | . . . . . . Exploration Rate (%) 69 | 2 98 94 91 97 33 Regions Visited 5 Branch Regions 3 Pre-discovered Areas 1 | . . 1 . . . Known Exits Taken 2 | . . 1 1 . . Unknown Exits Taken 3 | 1 1 . . 1 . Scrap Searched 3 | . . 2 . 1 . Spaces Dug . | . . . . . . Terrain Destroyed 161 | . 121 . 29 . 11 Melee . | . . . . . . Projectile 4 | . . . 2 . 2 AOE 157 | . 121 . 27 . 9 Terrain Rammed . | . . . . . . Walls Destroyed . | . . . . . . Machines Disabled . | . . . . . . Actions | -11 -10 -10 -9 -9 -9 --------- Run | Scr Mat Min Mat Min Exi Total 5095 | 51 1312 937 1736 562 497 Wait 446 | . 79 171 116 29 51 Move 4072 | 40 1063 723 1369 515 362 Hop . | . . . . . . Pick Up 116 | 8 25 8 50 2 23 Fast Attach 20 | . 10 . 4 . 6 Attach 38 | 3 15 1 13 . 6 Detach 21 | . 9 1 5 . 6 Swap 35 | . 11 4 14 3 3 Drop 83 | . 14 4 39 2 24 Fire 251 | . 86 25 126 11 3 Melee . | . . . . . . Ram . | . . . . . . Kick . | . . . . . . Crush . | . . . . . . Escape Stasis . | . . . . . . Rewire . | . . . . . . Trap 13 | . . . . . 13 Miscellaneous . | . . . . . . Route ------- -11/Scrapyard -10/Materials (discovered 5 exits: *Mat x3 / *Min x2) -10/Mines (discovered 2 exits: *Mat x2) -9/Materials (discovered 4 exits: [*Mat x3] / *Min) -9/Mines (discovered 4 exits: [*Mat x2] / [*Exi] / [*Zio]) -9/Exiles (discovered 1 exit: [*Min]) History --------- Turn | Location | Event 8 | -11/Scrapyard | Discovered new exit (range 15) 32 | -11/Scrapyard | Entered Materials 84 | -10/Materials | Discovered new exit (range 5) 308 | -10/Materials | Build established: Mutant 416 | -10/Materials | Identified exit to Materials 449 | -10/Materials | Discovered new exit (range 11) 902 | -10/Materials | Discovered exit to Materials (range 16) 1122 | -10/Materials | Lost 5 parts (1p2n2w) 1174 | -10/Materials | Discovered exit to Materials (range 16) 1207 | -10/Materials | Core integrity fell below 50% 1314 | -10/Materials | Discovered new exit (range 15) 1316 | -10/Materials | Build established: Trapper-Mutant 1775 | -10/Materials | Entered Mines 1786 | -10/Mines | Learned Materials security intel 1957 | -10/Mines | Assisted by bots powering up and referring to "LRC-V3" 2024 | -10/Mines | Found a hidden stash of uninstalled traps 2090 | -10/Mines | Discovered exit to Materials (range 15) 2270 | -10/Mines | Discovered exit to Materials (range 10) 2295 | -10/Mines | Core integrity fell below 20% 3010 | -10/Mines | Entered Materials 3010 | -9/Materials | Accompanied by 2 allies 3010 | -9/Materials | Evolved 2 slots: Utility x2 3191 | -9/Materials | Discovered new exit (range 13) 3572 | -9/Materials | Discovered new exit (range 10) 4582 | -9/Materials | Discovered new exit (range 5) 4937 | -9/Materials | Core integrity fell below 50% 4993 | -9/Materials | Lost 3 parts (2n1w) 4995 | -9/Materials | Discovered new exit (range 11) 5725 | -9/Materials | Identified exit to Mines 5931 | -9/Materials | System corruption reached 10% 5932 | -9/Materials | Core integrity fell below 20% 6041 | -9/Materials | Entered Mines 6073 | -9/Mines | Assembled infested the area 6136 | -9/Mines | Discovered new exit (range 11) 6201 | -9/Mines | A Derelict revealed a hidden shortcut to a safe place 6347 | -9/Mines | Discovered new exit (range 7) 6452 | -9/Mines | Received a Mining Laser from a helpful Derelict 6795 | -9/Mines | Deemed a non-threat by the Exiles lab entrance 7120 | -9/Mines | Discovered new exit (range 5) 7137 | -9/Mines | Entered Exiles 7185 | -9/Exiles | Met 8R-AWN 7265 | -9/Exiles | Discovered new exit (range 15) 7357 | -9/Exiles | Met EX-HEX 7738 | -9/Exiles | Attacked by the Exiles 7752 | -9/Exiles | Destroyed EX-HEX 7755 | -9/Exiles | Destroyed by DAS Turret with DAS Cannon Last Messages --------------- 07729_ Acquired Unknown Storage. 07730_ Identified Lrg. Storage Unit. 07732_ Dropped Lrg. Storage Unit. 07738_ System corrupted: FCS attempts to trigger Adv. Beam Cannon. 07738_ System corrupted: Adv. Beam Cannon misfires. 07738_ EXILES: Hostile robot within lab perimeter. Defensive protocols time, folks! 07738_ Extracted 200 matter. 07745_ System corrupted: Adv. Beam Cannon failed to cycle. 07745_ Wheel destroyed. 07748_ as-67802 destroyed. 07752_ as-27277 destroyed. 07752_ as-17134 destroyed. 07752_ as-56770 destroyed. 07752_ as-58796 destroyed. 07752_ EX-HEX destroyed. 07752_ Machine disabled. 07754_ Acquired 3 matter. 07755_ CKRP5B4S%V:AWFN >LL >A8A5 07755_ EX-BIN: "I just want to science!" Map ----- +----------------------------------------------------+ | ??????????????????????##" ?????????????????????? | | ?????????????????????##"" ?????????????????????? | | ?????????????????????#"" ????????????????????? | | ????????????????????"""" #???????????????????? | | ??????????????????" " "" ##???###########???? | | ?????????????????"" " #####"""""""""##??? | | ???????????????? " " """ """"##?? | | ??????????????? "" " #?? | | ???????????????? " """#?? | | ???????????????? = " "#?? | | ????????????????? != "!"##? | | ????????????????? ] !! ""## | | ????????????????? """""" ! ! """ | | ?????????????????? ######""" ]!= " | | ??????????????????"??????#####""" !!! | | ?????????????????????????????##""" | | ????????????? ????????????????#"""" | | ????????????? ??????????????##""!! | | ???????????? c #?#####???####""""! | | ???????????? #;aaa####""" ^ | | ???????????? """" | | ??????????? ! | | ??????????? %= | | ???????????? !!! a " | | ????????????? !% % "" """ " | | ????????????? "" @a #""" " " ""#" " | | ?????????????? ""## % #####""" """##"""""""# | | ??????????????????????# #???###""""########### | | ??????????????????????### ###???######?????????? | | ???????????????????????#! "!#??????????????????? | | ???????????????????????#" #??????????????????? | | ???????????????????????#" "#??????????????????? | | ???????????????????????#!!""!"#??????????????????? | | ???????????????????????########??????????????????? | | ?????????????????????????????????????????????????? | | ?????????????????????????????????????????????????? | | ?????????????????????????????????????????????????? | | ?????????????????????????????????????????????????? | | ?????????????????????????????????????????????????? | | ?????????????????????????????????????????????????? | | ?????????????????????????????????????????????????? | | ?????????????????????????????????????????????????? | | ?????????????????????????????????????????????????? | | ?????????????????????????????????????????????????? | | ?????????????????????????????????????????????????? | | ?????????????????????????????????????????????????? | | ?????????????????????????????????????????????????? | | ?????????????????????????????????????????????????? | | ?????????????????????????????????????????????????? | | ?????????????????????????????????????????????????? | +----------------------------------------------------+ Best States ------------- Heat Dissipation 50 Energy Generation 14 Energy Capacity 250 Matter Stores 300 Matter Capacity 300 Sight Range 18 Robot Scan Range 14 Terrain Scan Density 10 Armor Coverage 300 Utility Shielding 33 Evasion (%) 62 Particle Charging 22 Trap Extractor Capacity 4 Item Schematics ----------------- None Robot Schematics ------------------ None Fabricated ------------ Nothing Alien Tech Used ----------------- None Achievements -------------- None Challenges ------------ None Game ------ Seed SalvageSwarmBay Manual? 0 Play Time 00:56:29 Cumulative 280.3 hours Start 2022.09.07 @ 18:05:51 End 2022.09.07 @ 21:20:19 Sessions 1 Manual Loads 0 Difficulty Rogue Special Mode None Game No. 327 Rogue 327 Adventurer 0 Explorer 0 Win Type - Total 0 Types 0/0/0/0/0/0/0/0/0 Lore% 43 Gallery% 70 Achievement% 58 Wizard Run 0 Options --------- ASCII 0 Keyboard 0 Movement Mouse Keybinds 0 Fullscreen 2 Font 24/Smallcaps Map View 76x50 Tactical HUD 1 Map Filters NONE Filters NONE Steam 1 RUN: 6fe63564-d4f5-42e7-bfa5-da9021df6235